[Event "Titled Tuesday Blitz February 15 Early 2022"]
[White "Sokolovsky, Yahli"]
[Black "Seo, Jung Min"]
[WhiteFideId "2820242"]
[BlackFideId "1734687"]
[WhiteElo "1770"]
[BlackElo "2401"]
[Result "1/2-1/2"]
[Round "04"]
[TimeControl "180+1"]
[Date "2022.02.15"]
[WhiteClock "0:00:05"]
[BlackClock "0:00:02"]

1. b3 {[%clk 0:03:00]}  e5 {[%clk 0:02:58]} 2. Bb2 {[%clk 0:03:01]}  Nc6 {[%clk 0:02:58]} 3. e3 {[%clk 0:03:01]}  Nf6 {[%clk 0:02:56]} 4. Nf3 {[%clk 0:03:01]}  d6 {[%clk 0:02:52]} 5. d4 {[%clk 0:03:01]}  exd4 {[%clk 0:02:47]} 6. exd4 {[%clk 0:03:02]}  Be7 {[%clk 0:02:45]} 7. d5 {[%clk 0:03:01]}  Nb8 {[%clk 0:02:45]} 8. Bd3 {[%clk 0:03:00]}  O-O {[%clk 0:02:42]} 9. c4 {[%clk 0:02:57]}  Nbd7 {[%clk 0:02:41]} 10. O-O {[%clk 0:02:57]}  Nc5 {[%clk 0:02:41]} 11. Bc2 {[%clk 0:02:57]}  a5 {[%clk 0:02:41]} 12. Nc3 {[%clk 0:02:57]}  Nfd7 {[%clk 0:02:40]} 13. Nb5 {[%clk 0:02:33]}  Bf6 {[%clk 0:02:39]} 14. Bxf6 {[%clk 0:02:23]}  Nxf6 {[%clk 0:02:38]} 15. Nfd4 {[%clk 0:02:24]}  Bd7 {[%clk 0:02:38]} 16. Qf3 {[%clk 0:02:17]}  Re8 {[%clk 0:02:27]} 17. Rfe1 {[%clk 0:02:15]}  Re5 {[%clk 0:02:26]} 18. h3 {[%clk 0:01:39]}  Qe7 {[%clk 0:02:22]} 19. Qc3 {[%clk 0:00:54]}  c6 {[%clk 0:02:17]} 20. dxc6 {[%clk 0:00:54]}  bxc6 {[%clk 0:02:17]} 21. Na3 {[%clk 0:00:44]}  Re8 {[%clk 0:02:12]} 22. Nf3 {[%clk 0:00:43]}  Rxe1+ {[%clk 0:02:06]} 23. Rxe1 {[%clk 0:00:44]}  Qd8 {[%clk 0:02:06]} 24. Rxe8+ {[%clk 0:00:38]}  Bxe8 {[%clk 0:02:06]} 25. Nb1 {[%clk 0:00:37]}  h6 {[%clk 0:02:01]} 26. Nbd2 {[%clk 0:00:37]}  Bd7 {[%clk 0:01:58]} 27. Nd4 {[%clk 0:00:37]}  Qe7 {[%clk 0:01:50]} 28. N2f3 {[%clk 0:00:33]}  Nb7 {[%clk 0:01:42]} 29. Qd3 {[%clk 0:00:28]}  d5 {[%clk 0:01:37]} 30. cxd5 {[%clk 0:00:19]}  cxd5 {[%clk 0:01:37]} 31. Ne2 {[%clk 0:00:15]}  Nc5 {[%clk 0:01:36]} 32. Qd1 {[%clk 0:00:16]}  Nce4 {[%clk 0:01:33]} 33. Ned4 {[%clk 0:00:15]}  Qc5 {[%clk 0:01:32]} 34. Bd3 {[%clk 0:00:14]}  Qc3 {[%clk 0:01:24]} 35. Qe2 {[%clk 0:00:13]}  Bc6 {[%clk 0:01:12]} 36. Qc2 {[%clk 0:00:07]}  Qa1+ {[%clk 0:01:06]} 37. Qb1 {[%clk 0:00:04]}  Qxb1+ {[%clk 0:01:06]} 38. Bxb1 {[%clk 0:00:05]}  Bb7 {[%clk 0:01:04]} 39. Bd3 {[%clk 0:00:05]}  Kf8 {[%clk 0:01:04]} 40. Kf1 {[%clk 0:00:05]}  Ke7 {[%clk 0:01:03]} 41. Ke1 {[%clk 0:00:05]}  g6 {[%clk 0:01:03]} 42. a3 {[%clk 0:00:04]}  Kd6 {[%clk 0:01:03]} 43. b4 {[%clk 0:00:05]}  axb4 {[%clk 0:01:03]} 44. axb4 {[%clk 0:00:06]}  Nd7 {[%clk 0:01:03]} 45. Nb5+ {[%clk 0:00:05]}  Ke7 {[%clk 0:01:01]} 46. Nbd4 {[%clk 0:00:05]}  Nb6 {[%clk 0:00:57]} 47. Ng1 {[%clk 0:00:05]}  Nc4 {[%clk 0:00:56]} 48. Nge2 {[%clk 0:00:05]}  Kd6 {[%clk 0:00:54]} 49. f3 {[%clk 0:00:05]}  Nf6 {[%clk 0:00:53]} 50. Nb5+ {[%clk 0:00:05]}  Ke5 {[%clk 0:00:52]} 51. Nbd4 {[%clk 0:00:02]}  Ne8 {[%clk 0:00:50]} 52. Kf2 {[%clk 0:00:03]}  Ned6 {[%clk 0:00:49]} 53. Nb3 {[%clk 0:00:04]}  Bc8 {[%clk 0:00:43]} 54. Ned4 {[%clk 0:00:04]}  Bf5 {[%clk 0:00:39]} 55. Bf1 {[%clk 0:00:04]}  g5 {[%clk 0:00:36]} 56. Nc6+ {[%clk 0:00:04]}  Kf6 {[%clk 0:00:36]} 57. Nbd4 {[%clk 0:00:04]}  Bd7 {[%clk 0:00:35]} 58. b5 {[%clk 0:00:04]}  Nxb5 {[%clk 0:00:29]} 59. Nb4 {[%clk 0:00:03]}  Nxd4 {[%clk 0:00:25]} 60. Nxd5+ {[%clk 0:00:03]}  Ke5 {[%clk 0:00:26]} 61. Bxc4 {[%clk 0:00:04]}  f5 {[%clk 0:00:19]} 62. Ne3 {[%clk 0:00:04]}  f4 {[%clk 0:00:19]} 63. Nf1 {[%clk 0:00:03]}  Bf5 {[%clk 0:00:18]} 64. Nd2 {[%clk 0:00:03]}  Nc2 {[%clk 0:00:16]} 65. Be2 {[%clk 0:00:03]}  Ne3 {[%clk 0:00:16]} 66. Nf1 {[%clk 0:00:04]}  Nd5 {[%clk 0:00:16]} 67. Nd2 {[%clk 0:00:04]}  Kd4 {[%clk 0:00:15]} 68. Nb3+ {[%clk 0:00:04]}  Kc3 {[%clk 0:00:14]} 69. Nc5 {[%clk 0:00:05]}  Kd4 {[%clk 0:00:14]} 70. Nb3+ {[%clk 0:00:05]}  Ke5 {[%clk 0:00:14]} 71. Nd2 {[%clk 0:00:05]}  Ne3 {[%clk 0:00:13]} 72. Nc4+ {[%clk 0:00:06]}  Kd4 {[%clk 0:00:12]} 73. Nd2 {[%clk 0:00:04]}  h5 {[%clk 0:00:11]} 74. Nb3+ {[%clk 0:00:04]}  Kc3 {[%clk 0:00:11]} 75. Nc5 {[%clk 0:00:05]}  Kd4 {[%clk 0:00:10]} 76. Nb3+ {[%clk 0:00:05]}  Ke5 {[%clk 0:00:10]} 77. Nd2 {[%clk 0:00:06]}  Nc2 {[%clk 0:00:08]} 78. Nc4+ {[%clk 0:00:06]}  Kf6 {[%clk 0:00:08]} 79. Nd2 {[%clk 0:00:06]}  Nd4 {[%clk 0:00:08]} 80. Nc4 {[%clk 0:00:07]}  Be6 {[%clk 0:00:07]} 81. Nd2 {[%clk 0:00:07]}  Ke5 {[%clk 0:00:07]} 82. Bd3 {[%clk 0:00:07]}  Bd5 {[%clk 0:00:07]} 83. Be4 {[%clk 0:00:07]}  Be6 {[%clk 0:00:07]} 84. Bd3 {[%clk 0:00:08]}  Nf5 {[%clk 0:00:05]} 85. Ne4 {[%clk 0:00:08]}  g4 {[%clk 0:00:05]} 86. hxg4 {[%clk 0:00:07]}  hxg4 {[%clk 0:00:05]} 87. fxg4 {[%clk 0:00:08]}  Ne3 {[%clk 0:00:05]} 88. g5 {[%clk 0:00:08]}  Bd5 {[%clk 0:00:05]} 89. Nd2 {[%clk 0:00:03]}  Bxg2 {[%clk 0:00:05]} 90. Nf3+ {[%clk 0:00:04]}  Bxf3 {[%clk 0:00:03]} 91. Kxf3 {[%clk 0:00:05]}  Nf5 {[%clk 0:00:03]} 92. g6 {[%clk 0:00:03]}  Nh4+ {[%clk 0:00:02]} 93. Kg4 {[%clk 0:00:04]}  Nxg6 {[%clk 0:00:03]} 94. Bxg6 {[%clk 0:00:05]}  f3 {[%clk 0:00:02]} 95. Kxf3 {[%clk 0:00:05]} 1/2-1/2


[Site "https://www.chess.com"]

[Event "Titled Tuesday Blitz February 15 Early 2022"]
[White "Stefanov, Plamen"]
[Black "Rozhkov, Viacheslav"]
[WhiteFideId "2900980"]
[BlackFideId "4181484"]
[WhiteElo "2137"]
[BlackElo "2324"]
[Result "0-1"]
[Round "04"]
[TimeControl "180+1"]
[Date "2022.02.15"]
[WhiteClock "0:01:23"]
[BlackClock "0:00:49"]

1. e4 {[%clk 0:02:58]}  c5 {[%clk 0:03:00]} 2. Nf3 {[%clk 0:02:58]}  d6 {[%clk 0:02:58]} 3. Bb5+ {[%clk 0:02:58]}  Nd7 {[%clk 0:02:58]} 4. c3 {[%clk 0:02:58]}  a6 {[%clk 0:02:58]} 5. Ba4 {[%clk 0:02:58]}  b5 {[%clk 0:02:58]} 6. Bc2 {[%clk 0:02:58]}  Bb7 {[%clk 0:02:58]} 7. O-O {[%clk 0:02:58]}  Ngf6 {[%clk 0:02:58]} 8. Re1 {[%clk 0:02:56]}  e6 {[%clk 0:02:59]} 9. d4 {[%clk 0:02:56]}  Qc7 {[%clk 0:02:59]} 10. d5 {[%clk 0:02:52]}  exd5 {[%clk 0:02:47]} 11. exd5+ {[%clk 0:02:51]}  Be7 {[%clk 0:02:48]} 12. Qe2 {[%clk 0:02:40]}  Nxd5 {[%clk 0:02:30]} 13. Be4 {[%clk 0:02:39]}  N7f6 {[%clk 0:02:29]} 14. Bg5 {[%clk 0:02:35]}  Nxe4 {[%clk 0:01:48]} 15. Qxe4 {[%clk 0:02:31]}  O-O {[%clk 0:01:31]} 16. Bxe7 {[%clk 0:02:21]}  Rfe8 {[%clk 0:01:31]} 17. Bxd6 {[%clk 0:02:12]}  Rxe4 {[%clk 0:01:28]} 18. Bxc7 {[%clk 0:02:10]}  Rxe1+ {[%clk 0:01:27]} 19. Nxe1 {[%clk 0:02:10]}  Nxc7 {[%clk 0:01:27]} 20. Nd2 {[%clk 0:02:07]}  Rd8 {[%clk 0:01:23]} 21. Ndf3 {[%clk 0:02:07]}  Ne6 {[%clk 0:01:22]} 22. Kf1 {[%clk 0:01:59]}  g5 {[%clk 0:01:20]} 23. g3 {[%clk 0:01:49]}  g4 {[%clk 0:01:13]} 24. Ne5 {[%clk 0:01:49]}  h5 {[%clk 0:01:11]} 25. Ke2 {[%clk 0:01:38]}  Re8 {[%clk 0:01:01]} 26. Nd7 {[%clk 0:01:37]}  Nf8+ {[%clk 0:00:58]} 27. Kf1 {[%clk 0:01:31]}  Nxd7 {[%clk 0:00:57]} 28. Rd1 {[%clk 0:01:32]}  Ne5 {[%clk 0:00:56]} 29. Rd6 {[%clk 0:01:25]}  Nf3 {[%clk 0:00:54]} 30. Nd3 {[%clk 0:01:23]}  Nxh2+ {[%clk 0:00:50]} 31. Kg1 {[%clk 0:01:23]}  Nf3+ {[%clk 0:00:51]} 32. Kf1 {[%clk 0:01:23]}  c4 {[%clk 0:00:49]} 0-1


[Site "https://www.chess.com"]

[Event "Titled Tuesday Blitz February 15 Early 2022"]
[White "Svane, Frederik"]
[Black "Zhu, Jiner"]
[WhiteFideId "12923044"]
[BlackFideId "8608059"]
[WhiteElo "2459"]
[BlackElo "2281"]
[Result "1-0"]
[Round "04"]
[TimeControl "180+1"]
[Date "2022.02.15"]
[WhiteClock "0:00:07"]
[BlackClock "0:00:02"]

1. e4 {[%clk 0:03:00]}  c5 {[%clk 0:02:59]} 2. Nf3 {[%clk 0:03:01]}  Nc6 {[%clk 0:02:59]} 3. Bb5 {[%clk 0:03:01]}  g6 {[%clk 0:02:58]} 4. O-O {[%clk 0:03:00]}  Bg7 {[%clk 0:02:59]} 5. Re1 {[%clk 0:03:01]}  e5 {[%clk 0:02:58]} 6. Bxc6 {[%clk 0:03:01]}  dxc6 {[%clk 0:02:58]} 7. d3 {[%clk 0:03:01]}  Qe7 {[%clk 0:02:58]} 8. a4 {[%clk 0:02:58]}  Nf6 {[%clk 0:02:54]} 9. a5 {[%clk 0:02:57]}  O-O {[%clk 0:02:53]} 10. Nbd2 {[%clk 0:02:56]}  Ne8 {[%clk 0:02:50]} 11. Nc4 {[%clk 0:02:55]}  f6 {[%clk 0:02:47]} 12. Be3 {[%clk 0:02:52]}  Be6 {[%clk 0:02:47]} 13. Nfd2 {[%clk 0:02:49]}  Nc7 {[%clk 0:02:46]} 14. Nb3 {[%clk 0:02:38]}  Bxc4 {[%clk 0:02:37]} 15. Bxc5 {[%clk 0:02:31]}  Qf7 {[%clk 0:02:15]} 16. Bxf8 {[%clk 0:01:13]}  Bxb3 {[%clk 0:02:15]} 17. Bxg7 {[%clk 0:01:14]}  Bxc2 {[%clk 0:02:15]} 18. Qxc2 {[%clk 0:01:13]}  Kxg7 {[%clk 0:02:16]} 19. d4 {[%clk 0:01:11]}  exd4 {[%clk 0:02:14]} 20. Rad1 {[%clk 0:01:02]}  Ne6 {[%clk 0:02:11]} 21. a6 {[%clk 0:00:59]}  c5 {[%clk 0:02:03]} 22. f4 {[%clk 0:00:42]}  b6 {[%clk 0:01:55]} 23. f5 {[%clk 0:00:39]}  Nc7 {[%clk 0:01:43]} 24. b4 {[%clk 0:00:29]}  Nxa6 {[%clk 0:01:35]} 25. bxc5 {[%clk 0:00:29]}  bxc5 {[%clk 0:01:34]} 26. Ra1 {[%clk 0:00:29]}  Qb7 {[%clk 0:01:27]} 27. e5 {[%clk 0:00:24]}  fxe5 {[%clk 0:01:15]} 28. Rxe5 {[%clk 0:00:24]}  Rd8 {[%clk 0:00:57]} 29. Qe2 {[%clk 0:00:15]}  d3 {[%clk 0:00:52]} 30. f6+ {[%clk 0:00:15]}  Kf8 {[%clk 0:00:46]} 31. Qe3 {[%clk 0:00:16]}  d2 {[%clk 0:00:44]} 32. Rd1 {[%clk 0:00:16]}  Qd7 {[%clk 0:00:41]} 33. Qh6+ {[%clk 0:00:13]}  Kg8 {[%clk 0:00:40]} 34. Re7 {[%clk 0:00:13]}  Qd4+ {[%clk 0:00:40]} 35. Kh1 {[%clk 0:00:13]}  Qxf6 {[%clk 0:00:38]} 36. Qxh7+ {[%clk 0:00:13]}  Kf8 {[%clk 0:00:38]} 37. Re2 {[%clk 0:00:10]}  g5 {[%clk 0:00:21]} 38. Qxa7 {[%clk 0:00:10]}  Kg8 {[%clk 0:00:18]} 39. Qb7 {[%clk 0:00:08]}  Nb4 {[%clk 0:00:16]} 40. Qe4 {[%clk 0:00:08]}  Nc6 {[%clk 0:00:11]} 41. Kg1 {[%clk 0:00:08]}  Rd4 {[%clk 0:00:10]} 42. Qe8+ {[%clk 0:00:07]}  Kg7 {[%clk 0:00:10]} 43. Qe3 {[%clk 0:00:05]}  c4 {[%clk 0:00:03]} 44. Rf2 {[%clk 0:00:05]}  Qd8 {[%clk 0:00:01]} 45. Rfxd2 {[%clk 0:00:05]}  Rxd2 {[%clk 0:00:02]} 46. Rxd2 {[%clk 0:00:05]}  Qf6 {[%clk 0:00:02]} 47. Rd7+ {[%clk 0:00:05]}  Kh6 {[%clk 0:00:02]} 48. Qh3+ {[%clk 0:00:06]}  Kg6 {[%clk 0:00:02]} 49. Qh7# {[%clk 0:00:07]} 1-0


[Site "https://www.chess.com"]

[Event "Titled Tuesday Blitz February 15 Early 2022"]
[White "Sychev, Klementy"]
[Black "Praslov, Andrey"]
[WhiteFideId "4114060"]
[BlackFideId "4147863"]
[WhiteElo "2564"]
[BlackElo "2374"]
[Result "1/2-1/2"]
[Round "04"]
[TimeControl "180+1"]
[Date "2022.02.15"]
[WhiteClock "0:00:02"]
[BlackClock "0:00:36"]

1. e4 {[%clk 0:03:00]}  c6 {[%clk 0:02:59]} 2. h4 {[%clk 0:02:59]}  d5 {[%clk 0:02:59]} 3. h5 {[%clk 0:03:00]}  dxe4 {[%clk 0:02:58]} 4. Nc3 {[%clk 0:02:59]}  Nf6 {[%clk 0:02:55]} 5. h6 {[%clk 0:02:59]}  gxh6 {[%clk 0:02:51]} 6. d3 {[%clk 0:02:59]}  Bf5 {[%clk 0:02:45]} 7. Bxh6 {[%clk 0:02:47]}  Bxh6 {[%clk 0:02:41]} 8. Rxh6 {[%clk 0:02:47]}  exd3 {[%clk 0:02:39]} 9. Bxd3 {[%clk 0:02:41]}  Bxd3 {[%clk 0:02:38]} 10. cxd3 {[%clk 0:02:42]}  Na6 {[%clk 0:02:12]} 11. Nf3 {[%clk 0:02:39]}  Nc5 {[%clk 0:02:03]} 12. d4 {[%clk 0:02:34]}  Ne6 {[%clk 0:02:00]} 13. Qd2 {[%clk 0:02:30]}  Qd6 {[%clk 0:01:58]} 14. O-O-O {[%clk 0:02:28]}  O-O-O {[%clk 0:01:56]} 15. Kb1 {[%clk 0:02:23]}  Rhg8 {[%clk 0:01:54]} 16. g3 {[%clk 0:02:22]}  Rg4 {[%clk 0:01:52]} 17. Ne2 {[%clk 0:02:16]}  Ne4 {[%clk 0:01:47]} 18. Qe3 {[%clk 0:02:11]}  Nf6 {[%clk 0:01:24]} 19. a3 {[%clk 0:01:52]}  Qd5 {[%clk 0:01:24]} 20. Nc3 {[%clk 0:01:48]}  Qf5+ {[%clk 0:01:22]} 21. Ka1 {[%clk 0:01:47]}  Nd5 {[%clk 0:00:57]} 22. Nxd5 {[%clk 0:01:39]}  Rxd5 {[%clk 0:00:51]} 23. Rc1 {[%clk 0:01:16]}  Re4 {[%clk 0:00:42]} 24. Qc3 {[%clk 0:01:14]}  Nxd4 {[%clk 0:00:41]} 25. Nxd4 {[%clk 0:01:13]}  Rexd4 {[%clk 0:00:40]} 26. Rxc6+ {[%clk 0:00:38]}  bxc6 {[%clk 0:00:39]} 27. Qxc6+ {[%clk 0:00:38]}  Kd8 {[%clk 0:00:37]} 28. Qa8+ {[%clk 0:00:33]}  Kd7 {[%clk 0:00:37]} 29. Qc6+ {[%clk 0:00:05]}  Kd8 {[%clk 0:00:37]} 30. Qa8+ {[%clk 0:00:05]}  Kd7 {[%clk 0:00:37]} 31. Qc6+ {[%clk 0:00:02]}  Kd8 {[%clk 0:00:36]} 1/2-1/2


[Site "https://www.chess.com"]

[Event "Titled Tuesday Blitz February 15 Early 2022"]
[White "Tasev, Dejan"]
[Black "Hoffmann, Asa"]
[WhiteFideId "936618"]
[BlackFideId "2001470"]
[WhiteElo "2253"]
[BlackElo "2117"]
[Result "1-0"]
[Round "04"]
[TimeControl "180+1"]
[Date "2022.02.15"]
[WhiteClock "0:01:02"]
[BlackClock "0:01:15"]

1. e4 {[%clk 0:02:58]}  d6 {[%clk 0:02:52]} 2. d4 {[%clk 0:02:58]}  c6 {[%clk 0:02:46]} 3. Nc3 {[%clk 0:02:57]}  a6 {[%clk 0:02:46]} 4. Be3 {[%clk 0:02:53]}  Nf6 {[%clk 0:02:42]} 5. f3 {[%clk 0:02:53]}  Nbd7 {[%clk 0:02:41]} 6. Nge2 {[%clk 0:02:52]}  b5 {[%clk 0:02:41]} 7. a3 {[%clk 0:02:52]}  e5 {[%clk 0:02:41]} 8. g4 {[%clk 0:02:51]}  Qc7 {[%clk 0:02:39]} 9. Ng3 {[%clk 0:02:51]}  Nb6 {[%clk 0:02:39]} 10. Qd2 {[%clk 0:02:50]}  Be6 {[%clk 0:02:30]} 11. g5 {[%clk 0:02:48]}  Ng8 {[%clk 0:02:11]} 12. d5 {[%clk 0:02:41]}  cxd5 {[%clk 0:02:09]} 13. exd5 {[%clk 0:02:40]}  Bd7 {[%clk 0:02:06]} 14. h4 {[%clk 0:02:31]}  Nc4 {[%clk 0:02:04]} 15. Bxc4 {[%clk 0:02:30]}  Qxc4 {[%clk 0:02:04]} 16. Nce4 {[%clk 0:01:53]}  f5 {[%clk 0:01:57]} 17. gxf6 {[%clk 0:01:48]}  Nxf6 {[%clk 0:01:56]} 18. Nxf6+ {[%clk 0:01:41]}  gxf6 {[%clk 0:01:56]} 19. Ne4 {[%clk 0:01:42]}  Be7 {[%clk 0:01:55]} 20. b3 {[%clk 0:01:36]}  Qc7 {[%clk 0:01:51]} 21. O-O-O {[%clk 0:01:35]}  O-O-O {[%clk 0:01:42]} 22. Kb2 {[%clk 0:01:31]}  Kb7 {[%clk 0:01:41]} 23. Rc1 {[%clk 0:01:30]}  Rc8 {[%clk 0:01:41]} 24. c4 {[%clk 0:01:27]}  Qb8 {[%clk 0:01:32]} 25. c5 {[%clk 0:01:20]}  dxc5 {[%clk 0:01:28]} 26. d6 {[%clk 0:01:14]}  Bd8 {[%clk 0:01:23]} 27. Nxc5+ {[%clk 0:01:12]}  Rxc5 {[%clk 0:01:21]} 28. Rxc5 {[%clk 0:01:07]}  Bb6 {[%clk 0:01:15]} 29. Qd5+ {[%clk 0:01:04]}  Ka7 {[%clk 0:01:15]} 30. Rhc1 {[%clk 0:01:02]} 1-0


[Site "https://www.chess.com"]

[Event "Titled Tuesday Blitz February 15 Early 2022"]
[White "Tissir, Mohamed"]
[Black "Dew, Brian"]
[WhiteFideId "9000240"]
[BlackFideId "6000495"]
[WhiteElo "2464"]
[BlackElo "2118"]
[Result "1-0"]
[Round "04"]
[TimeControl "180+1"]
[Date "2022.02.15"]
[WhiteClock "0:00:15"]
[BlackClock "0:00:01"]

1. e4 {[%clk 0:02:44]}  c6 {[%clk 0:03:00]} 2. d4 {[%clk 0:02:42]}  d5 {[%clk 0:03:00]} 3. Nc3 {[%clk 0:02:43]}  dxe4 {[%clk 0:03:00]} 4. Nxe4 {[%clk 0:02:44]}  Bf5 {[%clk 0:03:00]} 5. Ng3 {[%clk 0:02:43]}  Bg6 {[%clk 0:03:01]} 6. h4 {[%clk 0:02:42]}  h6 {[%clk 0:03:01]} 7. Nf3 {[%clk 0:02:40]}  Nd7 {[%clk 0:03:00]} 8. h5 {[%clk 0:02:39]}  Bh7 {[%clk 0:03:00]} 9. Bd3 {[%clk 0:02:40]}  Bxd3 {[%clk 0:03:00]} 10. Qxd3 {[%clk 0:02:41]}  Ngf6 {[%clk 0:03:01]} 11. Bd2 {[%clk 0:02:41]}  Qc7 {[%clk 0:03:00]} 12. O-O-O {[%clk 0:02:41]}  e6 {[%clk 0:03:00]} 13. Kb1 {[%clk 0:02:41]}  Bd6 {[%clk 0:03:00]} 14. Ne4 {[%clk 0:02:41]}  Nxe4 {[%clk 0:02:59]} 15. Qxe4 {[%clk 0:02:42]}  Nf6 {[%clk 0:02:59]} 16. Qe2 {[%clk 0:02:43]}  a6 {[%clk 0:02:53]} 17. c4 {[%clk 0:02:41]}  O-O-O {[%clk 0:02:40]} 18. c5 {[%clk 0:02:32]}  Bf8 {[%clk 0:02:19]} 19. g3 {[%clk 0:02:26]}  Nd5 {[%clk 0:02:18]} 20. Ne5 {[%clk 0:02:26]}  Kb8 {[%clk 0:01:46]} 21. Nc4 {[%clk 0:02:21]}  Qe7 {[%clk 0:01:23]} 22. Ba5 {[%clk 0:02:12]}  Rc8 {[%clk 0:01:17]} 23. Nd6 {[%clk 0:02:08]}  Qd7 {[%clk 0:01:02]} 24. Nxc8 {[%clk 0:02:06]}  Qxc8 {[%clk 0:01:03]} 25. Rd3 {[%clk 0:02:00]}  Ka8 {[%clk 0:00:59]} 26. Rb3 {[%clk 0:01:56]}  Be7 {[%clk 0:00:59]} 27. Rd1 {[%clk 0:01:47]}  Bf6 {[%clk 0:01:00]} 28. f4 {[%clk 0:01:45]}  g6 {[%clk 0:00:58]} 29. Rdd3 {[%clk 0:01:33]}  g5 {[%clk 0:00:50]} 30. fxg5 {[%clk 0:01:28]}  hxg5 {[%clk 0:00:47]} 31. Rd1 {[%clk 0:01:10]}  Bg7 {[%clk 0:00:45]} 32. Rf3 {[%clk 0:01:08]}  Qd7 {[%clk 0:00:39]} 33. g4 {[%clk 0:01:00]}  Nf4 {[%clk 0:00:37]} 34. Qf1 {[%clk 0:00:55]}  Bxd4 {[%clk 0:00:30]} 35. Bb6 {[%clk 0:00:37]}  Qd5 {[%clk 0:00:18]} 36. Ra3 {[%clk 0:00:36]}  Kb8 {[%clk 0:00:12]} 37. Rxa6 {[%clk 0:00:32]}  Qe4+ {[%clk 0:00:09]} 38. Ka1 {[%clk 0:00:31]}  Ne2 {[%clk 0:00:07]} 39. Ra3 {[%clk 0:00:23]}  Qc2 {[%clk 0:00:04]} 40. Rb3 {[%clk 0:00:21]}  Rd8 {[%clk 0:00:02]} 41. Rb1 {[%clk 0:00:17]}  Rd5 {[%clk 0:00:01]} 42. Qxf7 {[%clk 0:00:15]} 1-0


[Site "https://www.chess.com"]

[Event "Titled Tuesday Blitz February 15 Early 2022"]
[White "Viani Antonio Dcunha"]
[Black "Svidler, Peter"]
[WhiteFideId "5027330"]
[BlackFideId "4102142"]
[WhiteElo "2366"]
[BlackElo "2725"]
[Result "1-0"]
[Round "04"]
[TimeControl "180+1"]
[Date "2022.02.15"]
[WhiteClock "0:00:14"]
[BlackClock "0:00:12"]

1. e4 {[%clk 0:02:57]}  c5 {[%clk 0:02:59]} 2. Nf3 {[%clk 0:02:56]}  d6 {[%clk 0:02:58]} 3. d4 {[%clk 0:02:56]}  cxd4 {[%clk 0:02:58]} 4. Nxd4 {[%clk 0:02:57]}  Nf6 {[%clk 0:02:58]} 5. Nc3 {[%clk 0:02:57]}  a6 {[%clk 0:02:59]} 6. Be2 {[%clk 0:02:55]}  e6 {[%clk 0:02:58]} 7. O-O {[%clk 0:02:52]}  Be7 {[%clk 0:02:58]} 8. f4 {[%clk 0:02:48]}  Nc6 {[%clk 0:02:54]} 9. Be3 {[%clk 0:02:44]}  O-O {[%clk 0:02:54]} 10. Qe1 {[%clk 0:02:36]}  Nxd4 {[%clk 0:02:50]} 11. Bxd4 {[%clk 0:02:37]}  b5 {[%clk 0:02:50]} 12. a3 {[%clk 0:02:33]}  Bb7 {[%clk 0:02:50]} 13. Bf3 {[%clk 0:02:32]}  Rc8 {[%clk 0:02:36]} 14. Rd1 {[%clk 0:02:29]}  Qc7 {[%clk 0:02:28]} 15. Kh1 {[%clk 0:02:16]}  Nd7 {[%clk 0:02:15]} 16. Qg3 {[%clk 0:02:06]}  Bf6 {[%clk 0:02:12]} 17. Bxf6 {[%clk 0:02:04]}  Nxf6 {[%clk 0:02:12]} 18. Rf2 {[%clk 0:01:40]}  Nd7 {[%clk 0:01:30]} 19. Rfd2 {[%clk 0:01:30]}  Nb6 {[%clk 0:01:30]} 20. Rxd6 {[%clk 0:01:09]}  Nc4 {[%clk 0:01:30]} 21. Rd7 {[%clk 0:01:08]}  Qb6 {[%clk 0:01:30]} 22. f5 {[%clk 0:01:00]}  exf5 {[%clk 0:01:30]} 23. exf5 {[%clk 0:00:52]}  Bxf3 {[%clk 0:01:29]} 24. Qxf3 {[%clk 0:00:52]}  Ne5 {[%clk 0:01:27]} 25. Nd5 {[%clk 0:00:47]}  Qc5 {[%clk 0:01:22]} 26. Ne7+ {[%clk 0:00:43]}  Qxe7 {[%clk 0:00:44]} 27. Rxe7 {[%clk 0:00:44]}  Nxf3 {[%clk 0:00:44]} 28. gxf3 {[%clk 0:00:43]}  Rxc2 {[%clk 0:00:45]} 29. b4 {[%clk 0:00:32]}  g6 {[%clk 0:00:44]} 30. fxg6 {[%clk 0:00:28]}  hxg6 {[%clk 0:00:44]} 31. Red7 {[%clk 0:00:25]}  Ra2 {[%clk 0:00:38]} 32. R7d3 {[%clk 0:00:24]}  Kg7 {[%clk 0:00:38]} 33. R1d2 {[%clk 0:00:23]}  Ra1+ {[%clk 0:00:30]} 34. Kg2 {[%clk 0:00:23]}  Re8 {[%clk 0:00:28]} 35. Rc2 {[%clk 0:00:20]}  Re6 {[%clk 0:00:27]} 36. Kf2 {[%clk 0:00:19]}  Ree1 {[%clk 0:00:22]} 37. Rc6 {[%clk 0:00:16]}  Rf1+ {[%clk 0:00:20]} 38. Kg2 {[%clk 0:00:16]}  Rg1+ {[%clk 0:00:20]} 39. Kf2 {[%clk 0:00:16]}  Raf1+ {[%clk 0:00:20]} 40. Ke2 {[%clk 0:00:17]}  Re1+ {[%clk 0:00:19]} 41. Kf2 {[%clk 0:00:17]}  Ref1+ {[%clk 0:00:19]} 42. Ke2 {[%clk 0:00:17]}  Ra1 {[%clk 0:00:19]} 43. Rxa6 {[%clk 0:00:16]}  Rg2+ {[%clk 0:00:19]} 44. Ke3 {[%clk 0:00:16]}  Rxh2 {[%clk 0:00:19]} 45. Rd5 {[%clk 0:00:16]}  Re1+ {[%clk 0:00:18]} 46. Kf4 {[%clk 0:00:16]}  Rh4+ {[%clk 0:00:16]} 47. Kg3 {[%clk 0:00:16]}  Rc4 {[%clk 0:00:15]} 48. Rxb5 {[%clk 0:00:16]}  f5 {[%clk 0:00:15]} 49. Rbb6 {[%clk 0:00:16]}  Rg1+ {[%clk 0:00:12]} 50. Kf2 {[%clk 0:00:16]}  Rcc1 {[%clk 0:00:12]} 51. Rc6 {[%clk 0:00:15]}  Rcf1+ {[%clk 0:00:12]} 52. Ke2 {[%clk 0:00:15]}  Re1+ {[%clk 0:00:12]} 53. Kf2 {[%clk 0:00:15]}  f4 {[%clk 0:00:12]} 54. Rxg6+ {[%clk 0:00:14]} 1-0


[Site "https://www.chess.com"]